bitfinex-derivatives/quotes_ETHF0:USTF0_20240905
["timestamp","ask_amount","ask_price","bid_price","bid_amount"]
[1725577692176,1.05423,2372.0,2371.5,0.3804]
[1725577692177,3.18055596,2371.9,2371.5,0.3804]
[1725577692378,3.18055596,2371.9,2371.8,0.42172]
[1725577692773,7.39655596,2371.9,2371.8,0.42172]
[1725577693976,4.216,2371.9,2371.8,0.42172]
[1725577694168,4.216,2371.9,2371.7,0.3853]
[1725577694169,6.97484596,2371.9,2371.7,0.3853]
[1725577694375,2.75884596,2371.9,2371.8,0.42172]
[1725577694570,3.18054596,2371.9,2371.8,0.42172]
[1725577695681,3.92694596,2372.0,2371.8,0.42172]
[1725577695980,0.4217,2371.9,2371.8,0.42172]
[1725577696684,3.18054596,2371.9,2371.8,0.42172]
[1725577697279,3.54244596,2372.0,2371.9,0.4217]
[1725577697779,2.75884596,2372.2,2372.1,0.42167]
[1725577698787,3.18049596,2372.2,2372.1,0.42167]
[1725577699282,2.75884596,2372.2,2372.1,0.42167]
[1725577699489,3.18048596,2372.3,2372.1,0.80387]
[1725577699690,2.75884596,2372.3,2372.2,0.42165]
[1725577700487,3.18047596,2372.3,2372.1,0.80385]
[1725577700684,3.18047596,2372.3,2372.2,0.42165]
[1725577701083,2.75884596,2372.3,2372.2,0.42165]
[1725577701684,3.55325596,2372.4,2372.2,0.42165]
[1725577702594,3.55325596,2372.4,2372.3,0.42163]
[1725577702890,2.75884596,2372.4,2372.3,0.42163]
[1725577703188,0.42163,2372.3,2372.2,0.42164]
[1725577703492,3.17974612,2372.3,2372.2,0.42164]
[1725577703881,2.75811612,2372.3,2372.2,0.42164]
[1725577704087,3.17973612,2372.4,2372.3,0.42163]
[1725577704390,3.17973612,2372.4,2372.2,0.42164]
[1725577704593,2.75811612,2372.4,2372.2,0.42164]
[1725577704791,3.17973612,2372.4,2372.2,0.42164]
[1725577705192,0.42163,2372.3,2372.2,0.42164]
[1725577705393,0.42163,2372.3,2372.1,0.3822]
[1725577705598,0.42163,2372.3,2372.2,0.42165]
[1725577705806,3.17974612,2372.3,2372.1,0.80386]
[1725577706805,0.42163,2372.3,2372.2,0.42165]
[1725577707414,3.17974612,2372.3,2372.2,0.42165]
[1725577708412,0.42163,2372.3,2372.2,0.42165]
[1725577708908,3.17974612,2372.3,2372.2,0.42165]
[1725577710209,0.42165,2372.2,2372.1,0.80386]
[1725577710409,3.17976612,2372.3,2372.1,0.80386]
[1725577710612,0.42165,2372.2,2372.1,0.80386]
[1725577710911,3.17975612,2372.3,2372.2,0.42165]
[1725577711106,3.17975612,2372.3,2372.1,0.3822]
[1725577711307,3.17975612,2372.3,2372.2,0.42165]
[1725577715506,0.42165,2372.2,2372.1,0.3822]
[1725577715706,1.47585,2372.1,2372.0,0.3798]
[1725577715907,0.4217,2371.9,2371.8,0.3809]
[1725577716612,0.4217,2371.9,2371.8,0.80262]
[1725577718020,0.4217,2371.9,2371.8,0.3809]
[1725577718205,0.4217,2371.9,2371.8,0.80262]
[1725577718412,0.42169,2372.0,2371.8,0.80262]
[1725577719518,3.18084639,2372.0,2371.8,0.80262]
[1725577720116,3.94133639,2372.1,2372.0,0.42169]
[1725577720320,3.94133639,2372.1,2371.9,0.42169]
[1725577720522,2.75915639,2372.2,2372.1,0.42167]
[1725577720814,2.75915639,2372.2,2372.1,1.79167]
[1725577722116,0.42164,2372.3,2372.2,0.42165]
[1725577722316,0.42164,2372.3,2372.2,0.78445]
[1725577722522,0.42164,2372.3,2372.2,1.16445]
[1725577723215,0.42164,2372.3,2372.2,0.7428]
[1725577725416,0.94233795,2372.3,2372.2,0.7428]
[1725577725623,0.81414,2372.3,2372.2,0.7428]
[1725577726220,1.99642667,2372.3,2372.2,0.7428]
[1725577726620,2.36342667,2372.3,2372.2,0.7428]
[1725577726822,5.54584515,2372.3,2372.2,0.7428]
[1725577727020,5.67404252,2372.3,2372.2,0.7428]
[1725577728428,2.36342737,2372.3,2372.2,0.7428]
[1725577728721,0.42167,2372.1,2372.0,0.42168]
[1725577728925,3.18356467,2372.1,2372.0,0.42168]
[1725577729126,0.42167,2372.1,2372.0,0.42168]
[1725577729428,0.4217,2371.9,2371.8,0.3693]
[1725577729625,1.47603,2371.8,2371.7,0.3929]
[1725577729816,1.47603,2371.8,2371.6,0.00632244]
[1725577729817,1.47609,2371.7,2371.6,0.00632244]
[1725577730021,4.23867367,2371.7,2371.6,0.00632244]
[1725577730328,4.23840412,2371.7,2371.6,0.00632244]
[1725577731220,3.18405412,2371.7,2371.6,0.00632244]
[1725577731425,0.42174,2371.7,2371.6,0.00632244]
[1725577731620,3.18405412,2371.7,2371.6,0.00632244]
[1725577732323,3.18405412,2371.7,2371.6,0.42808244]
[1725577733017,3.18405412,2371.7,2371.6,0.00632244]
[1725577735118,3.18405412,2371.7,2371.6,0.42808244]
[1725577735727,0.42174,2371.7,2371.6,0.42808244]
[1725577735928,2.76231412,2371.9,2371.7,1.47609]
[1725577736124,0.42168,2372.1,2371.9,0.4217]
[1725577736420,0.42168,2372.1,2371.8,0.37]
[1725577736421,2.7611976,2372.0,2371.8,0.37]
[1725577736622,3.1828976,2371.9,2371.8,0.37]
[1725577736826,3.5717976,2371.9,2371.8,0.37]
[1725577737026,3.5717976,2371.9,2371.8,0.79172]
[1725577737529,3.1500976,2371.9,2371.8,0.79172]
[1725577738625,0.3889,2371.9,2371.8,0.79172]
[1725577738824,0.8106,2371.9,2371.8,0.37]
[1725577739131,0.42172,2371.8,2371.7,0.42173]
[1725577739339,3.18326578,2371.8,2371.7,0.42173]
[1725577739828,2.76154578,2371.8,2371.7,0.42173]
[1725577740025,3.18326578,2371.8,2371.7,0.42173]
[1725577740533,3.57215578,2371.9,2371.8,0.42172]
[1725577740923,3.15044578,2371.9,2371.8,0.42172]
[1725577741124,3.57214578,2371.9,2371.8,0.42172]
[1725577745923,3.57214678,2371.9,2371.8,0.42172]
[1725577747026,0.42173,2371.8,2371.7,0.42172]
[1725577747234,3.18339296,2371.8,2371.7,0.42172]
[1725577747633,2.76166296,2371.8,2371.7,0.42172]
[1725577747825,3.57228296,2371.9,2371.8,0.42172]
[1725577748339,1.78993,2372.0,2371.6,0.39762244]
[1725577748340,3.18336296,2372.0,2371.9,0.4217]
[1725577748530,0.4217,2372.0,2371.9,0.4217]
[1725577749933,7.25791515,2372.2,2371.8,0.3689]
[1725577750139,0.42168,2372.1,2372.0,0.42167]
[1725577750338,0.42168,2372.1,2372.0,0.80617]
[1725577754236,1.47591,2372.0,2371.9,0.3552]
[1725577755036,1.60414094,2372.0,2371.9,0.3552]
[1725577756239,1.47591,2372.0,2371.9,0.7769]
[1725577757140,0.42169,2372.0,2371.9,0.7769]
[1725577758141,0.42168,2372.1,2372.0,0.42167]
[1725577758542,0.42168,2372.1,2372.0,0.80917]
[1725577759242,0.54988585,2372.1,2372.0,0.80917]
[1725577761939,0.54988585,2372.1,2372.0,0.3875]
[1725577761940,1.60406585,2372.1,2372.0,0.3875]
[1725577762140,1.47591,2372.0,2371.9,0.3552]
[1725577762337,0.42172,2371.8,2371.7,0.78863]
[1725577762537,0.42172,2371.8,2371.7,1.15313]
[1725577762743,0.80702,2371.8,2371.7,1.15313]
[1725577764143,3.57024001,2371.8,2371.7,1.15313]
[1725577764344,0.80702,2371.8,2371.7,1.15313]
[1725577765341,3.18492067,2371.8,2371.7,1.15313]
[1725577766242,2.76320067,2371.8,2371.7,1.15313]
[1725577767542,0.42172,2371.8,2371.7,1.15313]
[1725577768736,0.42172,2371.8,2371.7,0.42173]
[1725577768942,0.42172,2371.8,2371.7,0.78733]
[1725577770039,0.42172,2371.8,2371.4,3.2078]
[1725577770040,1.0545,2371.4,2371.1,1.50605747]
[1725577770240,0.42185,2371.1,2370.5,4.29201747]
[1725577770446,2.76491436,2370.9,2370.7,0.42192]
[1725577770644,2.76491436,2370.9,2370.6,0.7543]
[1725577770645,0.42191,2370.8,2370.6,0.7543]
[1725577771246,2.7712368,2370.9,2370.8,0.4219]
[1725577771452,0.00632244,2370.9,2370.8,0.4219]
[1725577771638,3.1931168,2370.9,2370.8,0.4219]
[1725577771847,4.1412368,2370.9,2370.6,0.7543]
[1725577772145,4.1412368,2370.9,2370.5,0.00632244]
[1725577772146,0.42193,2370.6,2370.5,0.00632244]
[1725577773354,2.84677,2370.6,2370.5,0.00632244]
[1725577773649,9.82303092,2370.6,2370.5,0.00632244]
[1725577773948,0.42203,2370.1,2369.8,0.78327]
[1725577774152,0.42201,2370.2,2369.9,0.42205]
[1725577775854,0.7883,2370.3,2370.0,0.42204]
[1725577779249,0.7883,2370.3,2369.8,0.36752244]
[1725577779250,0.7883,2370.3,2370.1,0.42202]
[1725577780044,0.42201,2370.2,2370.1,0.42202]
[1725577780644,0.42201,2370.2,2370.0,0.42203]
[1725577781756,0.42201,2370.2,2369.8,0.36752244]
[1725577781955,0.42201,2370.2,2370.0,0.42203]
[1725577782453,0.42202,2370.1,2369.9,0.42205]
[1725577782645,0.42206,2370.0,2369.8,0.78959244]
[1725577782840,0.42206,2370.0,2369.9,0.42206]
[1725577783045,0.42206,2370.0,2369.8,0.78959244]
[1725577783246,0.42206,2370.0,2369.8,0.36752244]
[1725577783552,0.42206,2370.0,2369.9,0.42206]
[1725577783752,0.42203,2370.1,2369.9,0.42206]
[1725577785155,0.42203,2370.1,2370.0,0.42204]
[1725577785348,0.42203,2370.1,2369.9,0.42205]
[1725577785549,0.42203,2370.1,2370.0,0.42204]
[1725577786057,0.42202,2370.2,2370.0,0.42204]
[1725577786447,0.42202,2370.1,2370.0,0.42204]
[1725577787158,0.42202,2370.2,2370.0,0.42204]
[1725577790459,0.42202,2370.2,2370.1,0.42202]
[1725577793248,0.78829,2370.3,2370.2,0.42201]
[1725577794365,0.42201,2370.2,2370.1,0.42201]
[1725577796158,1.47722,2369.9,2369.8,0.00632244]
[1725577796559,6.41992,2369.9,2369.8,0.00632244]
[1725577796867,7.78992,2369.9,2369.8,0.00632244]
[1725577798564,10.99772,2369.9,2369.8,0.00632244]
[1725577806269,12.05288,2369.9,2369.8,0.00632244]
[1725577809270,10.99772,2369.9,2369.8,0.00632244]
[1725577811274,10.99772,2369.9,2369.8,0.36602244]
[1725577811777,6.77772,2369.9,2369.8,0.36602244]
[1725577812173,10.99772,2369.9,2369.8,0.36602244]
[1725577813879,3.62986,2369.9,2369.8,0.36602244]
[1725577814392,4.99986,2369.9,2369.8,0.36602244]
[1725577814567,5.37186,2369.9,2369.8,0.36602244]
[1725577815379,6.42702,2369.9,2369.8,0.36602244]
[1725577815679,12.05968,2369.9,2369.8,0.00632244]
[1725577815977,12.05968,2369.9,2369.3,0.3718]
[1725577815978,0.42215,2369.4,2369.3,0.3718]
[1725577816186,0.42215,2369.4,2369.2,3.62997]
[1725577816187,1.47759,2369.3,2369.2,3.2078]
[1725577816370,0.42222,2369.0,2368.9,0.3709]
[1725577816681,2.84778,2369.0,2368.9,0.3709]
[1725577816974,0.42222,2369.0,2368.9,0.3709]
[1725577817873,0.42221,2369.1,2368.9,0.3709]
[1725577818176,0.42221,2369.1,2369.0,0.3937]
[1725577818382,7.76606825,2369.2,2369.0,0.3937]
[1725577818583,7.76606825,2369.2,2369.1,0.3778]
[1725577818584,5.00630244,2369.2,2369.1,0.3778]
[1725577819979,7.76605825,2369.2,2369.1,0.3778]
[1725577820185,5.00630244,2369.2,2369.1,0.3778]
[1725577820385,6.06177244,2369.2,2369.1,0.3778]
[1725577823277,1.47778,2369.0,2368.9,0.3709]
[1725577832890,0.42222,2369.0,2368.9,0.79314]
[1725577833386,0.42222,2369.0,2368.9,1.16484]
[1725577834691,0.42222,2369.0,2368.9,0.7426]
[1725577834988,0.42222,2369.0,2368.9,1.16484]
[1725577841484,0.42222,2369.0,2368.9,5.38644]
[1725577841685,0.42222,2369.0,2368.9,1.16484]
[1725577842782,0.42222,2369.0,2368.9,0.7426]
[1725577843585,0.42222,2369.0,2368.9,1.16484]
[1725577843788,0.42222,2369.0,2368.9,0.7426]
[1725577844178,0.42222,2369.0,2368.9,1.16484]
[1725577844989,0.42222,2369.0,2368.9,0.7426]
[1725577846186,0.42222,2369.0,2368.9,1.16484]
[1725577846681,1.47778,2369.0,2368.9,0.7426]
[1725577847489,1.47778,2369.0,2368.9,0.3709]
[1725577848293,0.42222,2369.0,2368.9,0.79314]
[1725577850192,0.42222,2369.0,2368.9,0.3709]
[1725577850791,1.47791,2368.8,2368.7,0.00632244]
[1725577851494,1.85871,2368.8,2368.7,0.00632244]
[1725577851694,13.10461924,2368.8,2368.7,0.00632244]
[1725577851901,16.34376,2368.8,2368.7,0.00632244]
[1725577852193,1.47815,2368.4,2368.3,3.2078]
[1725577852403,2.84815,2368.4,2368.3,3.2078]
[1725577852696,3.60975,2368.4,2368.3,3.2078]
[1725577855299,3.96635,2368.4,2368.3,3.2078]
[1725577855498,2.76148951,2368.6,2368.5,0.42231]
[1725577855795,4.92777951,2368.7,2368.6,0.42229]
[1725577856595,4.50548951,2368.7,2368.6,0.42229]
[1725577856810,2.16627,2368.7,2368.6,0.42225]
[1725577857102,4.50548951,2368.7,2368.6,0.42225]
[1725577857398,0.42225,2368.6,2368.5,0.42226]
[1725577857787,4.92772951,2368.7,2368.6,0.42225]
[1725577858193,2.16624,2368.7,2368.6,0.42225]
[1725577859501,4.55372951,2368.7,2368.6,0.42225]
[1725577859697,2.76148951,2368.7,2368.6,0.42225]
[1725577860499,1.79222,2368.8,2368.7,0.42223]
[1725577860703,3.1857392,2368.8,2368.7,0.42223]
[1725577860897,0.42221,2368.8,2368.7,0.42223]
[1725577861103,3.1857392,2368.8,2368.7,0.42223]
[1725577861299,0.42221,2368.8,2368.7,0.42223]
[1725577861497,3.1857392,2368.8,2368.7,0.3744]
[1725577864498,2.7635292,2368.8,2368.7,0.79663]
[1725577864702,0.42218,2369.0,2368.7,0.3744]
[1725577865005,2.76493761,2368.9,2368.8,0.42221]
[1725577865199,2.76493761,2369.1,2368.9,0.4222]
[1725577865402,2.77126005,2369.2,2369.1,0.42216]
[1725577865605,0.00632244,2369.2,2369.1,0.42216]
[1725577865807,0.00632244,2369.2,2369.1,5.41206]
[1725577867708,2.77126005,2369.2,2369.1,5.41206]
[1725577868303,2.77126005,2369.2,2369.1,0.7691]
[1725577868499,2.77126005,2369.2,2369.1,4.9899]
[1725577868705,2.77126005,2369.2,2369.1,0.7691]
[1725577869011,2.77126005,2369.2,2369.1,4.9899]
[1725577869201,2.77126005,2369.2,2369.1,0.7691]
[1725577869403,2.77126005,2369.2,2369.1,4.9899]
[1725577869708,0.00632244,2369.2,2369.1,4.9899]
[1725577870911,0.42846244,2369.2,2369.1,4.9899]
[1725577871301,0.42846244,2369.2,2369.1,0.3876]
[1725577871504,2.24402244,2369.2,2369.1,0.3876]
[1725577872711,3.95192839,2369.2,2369.1,0.3876]
[1725577872905,3.56842839,2369.2,2369.1,0.3876]
[1725577873411,2.76958839,2369.2,2369.1,0.80976]
[1725577873801,0.00632244,2369.2,2369.1,0.80976]
[1725577874007,0.00632244,2369.2,2369.1,5.03056]
[1725577876123,2.76326595,2369.5,2369.4,0.42211]
[1725577876124,0.61595595,2369.5,2369.4,0.42211]
[1725577876406,0.213,2370.2,2369.8,1.05509]
[1725577876609,4.36532515,2370.7,2369.8,1.05509]
[1725577876610,0.42192,2370.5,2370.0,3.2078]
[1725577876914,3.28,2370.5,2369.9,0.7789]
[1725577877211,1.05471,2370.7,2370.0,0.00632244]
[1725577877212,0.42198,2370.1,2370.0,0.00632244]
[1725577881707,4.01148,2370.2,2370.0,0.00632244]
[1725577882109,4.01148,2370.2,2370.0,0.42832244]
[1725577884408,0.80368,2370.2,2370.0,0.42832244]
[1725577888912,0.80368,2370.2,2370.1,0.42198]
[1725577889306,0.80368,2370.2,2370.0,0.42831244]
[1725577889717,0.80368,2370.2,2370.1,0.42198]
[1725577893526,0.80368,2370.2,2370.0,0.42830244]
[1725577896620,0.42198,2370.1,2370.0,0.42830244]
[1725577911228,0.80368,2370.2,2370.1,0.42198]
[1725577911429,0.42198,2370.2,2370.1,0.42198]
[1725577912134,0.72792244,2370.4,2370.3,0.42195]
[1725577912135,0.78566244,2370.4,2370.3,0.42195]
[1725577912834,0.78566244,2370.4,2370.3,0.78715]
[1725577918429,0.78566244,2370.4,2370.3,0.3652]
[1725577919140,0.78566244,2370.4,2370.3,0.78715]
[1725577919334,0.78566244,2370.4,2370.3,0.3652]
[1725577920231,1.96890616,2370.4,2370.3,0.3652]
[1725577921144,1.84049244,2370.4,2370.3,0.3652]
[1725577921635,4.2247071,2370.4,2370.3,0.3652]
[1725577921835,5.2795371,2370.4,2370.3,0.3652]
[1725577924237,5.15110759,2370.4,2370.3,0.3652]
[1725577924741,2.5319,2370.1,2370.0,0.00632244]
[1725577925032,1.47725,2369.6,2369.5,0.38]
[1725577925234,1.47725,2369.6,2369.1,3.35965168]
[1725577925235,0.42212,2369.3,2369.2,0.361]
[1725577926839,0.42212,2369.3,2369.2,0.78314]
[1725577927240,1.79212,2369.4,2369.2,0.78314]
[1725577927739,0.42212,2369.4,2369.3,0.42212]
[1725577927941,3.32230943,2369.7,2369.2,0.361]
[1725577928149,1.7494,2369.8,2369.3,0.3811]
[1725577928341,0.42208,2369.6,2369.4,0.42209]
[1725577928736,0.42206,2369.7,2369.5,0.3605]
[1725577929242,1.7494,2369.8,2369.5,0.78259]
[1725577929439,0.42206,2369.7,2369.6,0.3918]
[1725577930841,3.9625,2369.9,2369.6,0.3918]
[1725577931042,3.62982,2369.9,2369.7,0.42204]
[1725577931247,3.62982,2369.9,2369.7,0.81324]
[1725577931435,0.42203,2369.8,2369.7,0.3912]
[1725577931943,3.62983,2369.9,2369.7,0.3912]
[1725577932138,3.2078,2369.9,2369.7,0.3912]
[1725577932339,3.2078,2369.9,2369.8,0.42203]
[1725577933245,3.62982,2369.9,2369.7,0.81324]
[1725577933636,3.2078,2369.9,2369.8,0.42203]
[1725577934442,3.62982,2369.9,2369.7,0.81324]
[1725577935547,0.42203,2369.8,2369.7,0.81324]
[1725577935851,0.42203,2369.8,2369.7,0.3912]
[1725577937147,0.42203,2369.8,2369.7,0.81325]
[1725577942849,2.18745,2370.2,2369.7,3.599]
[1725577943056,0.81558,2370.2,2370.1,0.42198]
[1725577943252,0.81558,2370.2,2369.9,1.37]
[1725577943253,0.42199,2370.1,2370.0,0.42199]
[1725577943552,0.42199,2370.1,2370.0,0.80559]
[1725577943749,0.42199,2370.1,2370.0,0.3836]
[1725577949250,0.42199,2370.1,2370.0,0.8056]
[1725577951447,0.42197,2370.2,2370.1,0.42197]
[1725577952352,0.42198,2370.1,2370.0,0.80559]
[1725577953855,4.5778,2370.3,2369.7,3.2078]
[1725577954155,0.42211,2369.5,2369.2,1.37]
[1725577954359,0.42211,2369.5,2369.3,0.78911]
[1725577954763,0.42211,2369.5,2369.4,0.42211]
[1725577954956,0.42211,2369.5,2369.3,0.367]
[1725577954957,0.42211,2369.5,2369.3,0.78911]
[1725577956154,0.42211,2369.5,2369.4,0.42211]
[1725577956357,1.79149,2369.6,2369.3,0.7358]
[1725577956665,0.4221,2369.5,2369.4,0.42211]
[1725577959054,1.53898,2369.6,2369.4,0.42211]
[1725577959256,3.2078,2369.7,2369.5,0.42209]
[1725577959466,0.42207,2369.6,2369.5,0.42209]
[1725577959965,0.42207,2369.6,2369.4,0.42209]
[1725577960165,0.42209,2369.5,2369.4,0.42209]
[1725577960865,0.42208,2369.6,2369.3,2.1058]
[1725577961567,0.42208,2369.6,2369.4,0.42209]
[1725577961760,0.42209,2369.5,2369.4,0.42209]
[1725577962565,0.42208,2369.6,2369.5,0.42209]
[1725577962868,0.42209,2369.5,2369.4,0.4221]
[1725577963160,3.62987,2369.7,2369.5,0.42209]
[1725577963465,0.42207,2369.7,2369.5,0.42209]
[1725577964465,0.80494,2369.8,2369.3,3.16111]
[1725577964771,0.80494,2369.8,2369.5,1.37]
[1725577965071,0.42205,2369.7,2369.6,0.42206]
[1725577965962,0.80495,2369.8,2369.6,0.42206]
[1725577966270,0.42205,2369.7,2369.5,1.79207]
[1725577967067,0.42207,2369.6,2369.5,1.79207]
[1725577968662,0.42207,2369.6,2369.5,1.37]
[1725577969170,0.42207,2369.6,2369.4,0.42209]
[1725577972376,0.42209,2369.5,2369.4,0.42209]
[1725577972572,0.42208,2369.6,2369.4,0.42209]
[1725577972876,0.42209,2369.6,2369.4,0.42209]
[1725577973267,0.42209,2369.5,2369.4,0.42209]
[1725577973971,0.42208,2369.6,2369.5,0.42208]
[1725577975168,0.42208,2369.6,2369.4,0.42209]
[1725577975375,0.42208,2369.6,2369.4,0.42211]
[1725577975972,0.42208,2369.6,2369.5,0.42209]
[1725577977678,1.438,2369.8,2369.3,2.1058]
[1725577977679,0.42209,2369.5,2369.4,0.42209]
[1725577979575,0.42209,2369.6,2369.4,0.42211]
[1725577979773,0.42209,2369.5,2369.4,0.42211]
[1725577980377,0.42208,2369.6,2369.5,0.42208]
[1725577980670,0.3829,2369.8,2369.7,0.42205]
[1725577980874,19.27426032,2375.5,2369.9,0.42202]
[1725577980875,3.3058,2370.1,2369.9,0.42202]
[1725577981085,0.422,2370.0,2369.8,1.17892]
[1725577981280,0.42202,2369.9,2369.8,0.7569]
[1725577982073,0.42202,2369.9,2369.8,1.17893]
[1725577982381,0.42202,2369.9,2369.8,0.7569]
[1725577984084,0.42202,2369.9,2369.8,1.17893]
[1725577984386,0.42202,2369.9,2369.8,0.7569]
[1725577985084,0.42202,2369.9,2369.8,1.17893]
[1725577986184,1.05497,2370.1,2369.8,1.17893]
[1725577986678,0.422,2370.0,2369.8,1.17893]
[1725577986885,0.42202,2369.9,2369.8,1.17893]
[1725577987474,0.42202,2369.9,2369.8,0.7569]
[1725577987889,0.42202,2369.9,2369.8,1.17893]
[1725577991884,0.42201,2370.0,2369.9,0.42201]
[1725577992279,0.42202,2369.9,2369.8,1.17893]
[1725577996586,0.42201,2370.0,2369.9,0.42201]
[1725578003789,0.3937,2370.2,2370.1,0.42198]
[1725578003994,0.42826244,2370.4,2370.3,0.42195]
[1725578004185,0.00632244,2370.4,2370.3,1.47682]
[1725578004387,0.00632244,2370.4,2370.3,5.69522]
[1725578004591,0.00632244,2370.4,2370.3,46.49522]
[1725578005084,0.00632244,2370.4,2370.3,47.86522]
[1725578005484,1.15263,2370.9,2370.3,52.81035]
[1725578005687,0.42187,2370.8,2370.7,0.42186]
[1725578005992,0.42186,2370.9,2370.8,0.42185]
[1725578006395,4.64207,2371.0,2370.7,1.37]
[1725578006396,0.42186,2370.8,2370.7,1.79186]
[1725578007892,0.42187,2370.7,2370.6,0.78078]
[1725578008697,0.42187,2370.7,2370.6,1.14098]
[1725578008887,0.42187,2370.8,2370.7,0.42187]
[1725578018504,1.15885,2370.9,2370.8,0.42186]
[1725578019399,0.42185,2370.9,2370.8,0.42186]
[1725578019603,0.098,2371.4,2370.8,10.2176]
[1725578019902,0.098,2371.4,2371.1,0.42179]
[1725578019903,0.42179,2371.2,2371.1,0.42179]
[1725578022909,0.42809244,2371.4,2371.3,0.42177]
[1725578024802,0.00632244,2371.4,2371.3,1.79177]
[1725578025406,0.42807244,2371.4,2371.3,1.79177]
[1725578027708,0.42807244,2371.4,2371.3,1.37]
[1725578029411,0.42807244,2371.4,2371.3,1.79177]
[1725578029618,0.42807244,2371.4,2371.3,1.37]
[1725578029998,0.42807244,2371.4,2371.3,1.79177]
[1725578030613,0.42807244,2371.4,2371.3,1.37]
[1725578031906,1.05443,2371.3,2371.0,0.7623]
[1725578032207,1.05443,2371.3,2370.7,1.05468]
[1725578032208,0.42186,2370.8,2370.7,2.15527]
[1725578032416,0.42186,2370.8,2370.7,2.54307]
[1725578032600,0.42185,2370.9,2370.8,0.42186]
[1725578033601,0.42185,2370.9,2370.8,1.37]
[1725578035011,0.42185,2370.9,2370.8,1.79186]
[1725578035604,0.42183,2371.0,2370.9,0.42184]
[1725578039014,0.42182,2371.1,2371.0,0.42182]
[1725578039215,0.366,2371.2,2371.1,0.4218]
[1725578039719,0.366,2371.2,2371.1,1.7918]
[1725578039911,0.42179,2371.2,2371.1,2.1549]
[1725578040216,0.4218,2371.1,2371.0,0.3942]
[1725578040416,1.42659,2371.2,2370.9,0.42183]
[1725578040417,0.42182,2371.0,2370.9,1.79183]
[1725578041007,0.42184,2370.9,2370.8,1.17915]
[1725578041209,0.3586,2370.9,2370.8,2.54915]
[1725578042909,0.3721,2371.2,2371.0,0.42181]
[1725578043113,0.4218,2371.1,2371.0,1.79181]
[1725578043611,0.7307,2371.2,2371.0,1.37]
[1725578044717,0.4218,2371.1,2371.0,1.79182]
[1725578046025,0.4218,2371.1,2371.0,1.37]
[1725578046222,0.42182,2371.0,2370.9,1.79183]
[1725578048022,0.42182,2371.1,2371.0,0.42182]
[1725578048624,1.1525,2371.2,2371.1,0.4218]
[1725578049422,1.1525,2371.2,2371.1,0.3692]
[1725578049622,0.42182,2371.0,2370.9,0.42183]
[1725578049827,0.42182,2371.1,2370.9,0.42183]
[1725578050228,0.42182,2371.0,2370.9,0.42183]
[1725578050425,1.05452,2371.1,2370.7,1.17696]
[1725578050629,1.05452,2371.1,2370.5,1.74012244]
[1725578050630,0.42187,2370.7,2370.5,1.74012244]
[1725578050831,0.42187,2370.7,2370.6,0.42189]
[1725578051025,1.15957,2370.8,2370.6,0.42189]
[1725578051932,1.15957,2370.8,2370.7,0.42187]
[1725578052432,1.15957,2370.8,2370.6,0.42189]
[1725578052728,1.15957,2370.8,2370.7,0.42187]
[1725578052729,0.7377,2370.8,2370.7,0.42187]
[1725578053328,0.7377,2370.8,2370.7,1.79187]
[1725578054734,1.15956,2370.8,2370.7,1.37]
[1725578055134,1.15956,2370.8,2370.7,1.79187]
[1725578055135,0.7377,2370.8,2370.7,1.79187]
[1725578055943,1.15956,2370.8,2370.7,1.37]
[1725578056941,0.7377,2370.8,2370.7,1.79187]
[1725578057134,0.3644,2370.8,2370.7,1.79187]
[1725578057537,0.098,2371.1,2371.0,0.42182]
[1725578057743,0.8099,2371.2,2371.0,1.79182]
[1725578058132,0.8099,2371.2,2371.1,0.3883]
[1725578059139,0.4218,2371.2,2371.1,0.3883]
[1725578061849,0.80188,2371.3,2371.1,0.8101]
[1725578062147,0.42179,2371.2,2371.1,0.3883]
[1725578063048,0.80188,2371.3,2371.1,0.8101]
[1725578063443,0.80188,2371.3,2371.1,0.3883]
[1725578063444,0.42179,2371.2,2371.1,0.3883]
[1725578064643,0.42184,2370.9,2370.8,0.3906]
[1725578065947,0.42184,2370.9,2370.8,0.81246]
[1725578067446,1.19104,2371.0,2370.8,0.81246]
[1725578070543,1.19104,2371.0,2370.9,0.42184]
[1725578071547,1.19104,2371.0,2370.8,0.81244]
[1725578071744,0.42184,2370.9,2370.8,0.3906]
[1725578071944,0.42184,2370.9,2370.8,0.42185]
[1725578072143,0.42184,2370.9,2370.7,1.37]
[1725578072144,0.42184,2370.9,2370.7,2.15546]
[1725578072552,0.42184,2370.9,2370.8,0.42186]
[1725578072849,0.7692,2371.0,2370.8,1.79186]
[1725578072850,1.19103,2371.0,2370.8,1.79186]
[1725578073244,1.19103,2371.0,2370.9,0.3668]
[1725578076856,1.19103,2371.0,2370.9,0.78864]
[1725578078058,0.42179,2371.2,2370.9,0.3668]
[1725578078251,0.42179,2371.2,2371.1,0.42179]
[1725578078447,0.55009611,2371.2,2371.0,2.18601]
[1725578078652,0.42179,2371.2,2371.0,2.18601]
[1725578079247,0.42179,2371.2,2371.1,0.4218]
[1725578079453,0.55010475,2371.2,2371.1,0.4218]
[1725578079656,0.55010475,2371.2,2371.0,2.18601]
[1725578079861,0.4218,2371.1,2371.0,2.18601]
[1725578080262,0.55013289,2371.1,2371.0,2.18601]
[1725578080462,0.55013289,2371.1,2371.0,1.37]
[1725578080760,0.93663289,2371.1,2371.0,0.42182]
[1725578082157,0.93663289,2371.1,2370.9,0.78863]
[1725578082361,0.8083,2371.1,2370.9,0.78863]
[1725578083364,0.42182,2371.0,2370.9,0.78863]
[1725578083861,0.80832,2371.1,2370.9,0.78863]
[1725578086065,7.58453943,2371.3,2371.0,0.42182]
[1725578086264,0.55011811,2371.2,2371.1,0.3582]